bitfinex-derivatives/quotes_BNBF0:USTF0_20260110
["timestamp","ask_amount","ask_price","bid_price","bid_amount"]
[1768003747247,1.02608571,897.74,897.11,1.671086]
[1768003747447,1.02608571,897.73,897.11,1.671086]
[1768003747644,1.02608571,897.72,897.11,1.671086]
[1768003747843,1.02608571,897.71,897.11,1.671086]
[1768003748047,1.02608571,897.7,897.11,1.671086]
[1768003748246,1.02608571,897.69,897.11,1.671086]
[1768003748545,1.02608571,897.68,897.14,1.671086]
[1768003748746,0.19381356,898.46,897.14,1.671086]
[1768003748945,1.6742706,898.45,897.14,1.671086]
[1768003749145,1.6742706,898.44,897.14,1.671086]
[1768003749350,1.6742706,898.43,897.14,1.671086]
[1768003749550,1.6742706,898.42,897.16,1.671086]
[1768003749849,1.6742706,898.41,897.16,1.671086]
[1768003750050,1.6742706,898.4,897.16,1.671086]
[1768003750246,1.6742706,898.39,897.16,1.671086]
[1768003750448,1.6742706,898.38,897.16,1.671086]
[1768003750647,1.6742706,898.37,897.16,1.671086]
[1768003750846,1.6742706,898.36,897.16,1.671086]
[1768003751147,1.6742706,898.35,897.16,1.671086]
[1768003751347,1.6742706,898.34,897.15,1.671086]
[1768003751652,1.6742706,898.33,897.15,1.671086]
[1768003751852,1.6742706,898.32,897.15,1.671086]
[1768003752048,1.6742706,898.31,897.15,1.671086]
[1768003752248,1.6742706,898.3,897.15,1.671086]
[1768003752552,1.6742706,898.29,897.15,1.671086]
[1768003752750,1.6742706,898.28,897.15,1.671086]
[1768003752951,1.6742706,898.27,897.15,1.671086]
[1768003753152,1.6742706,898.26,897.15,1.671086]
[1768003753351,1.6742706,898.25,897.15,1.671086]
[1768003753549,1.6742706,898.24,897.15,1.671086]
[1768003753751,1.6742706,898.23,897.15,1.671086]
[1768003753951,1.6742706,898.22,897.15,1.671086]
[1768003754148,1.6742706,898.21,897.15,1.671086]
[1768003754354,1.6742706,898.2,897.15,1.671086]
[1768003754553,1.6742706,898.19,897.15,1.671086]
[1768003754854,1.6742706,898.18,897.15,1.671086]
[1768003755054,1.6742706,898.17,897.15,1.671086]
[1768003755251,1.6742706,898.16,897.15,1.671086]
[1768003755450,1.6742706,898.15,897.15,1.671086]
[1768003755754,1.6742706,898.14,897.15,1.671086]
[1768003756051,1.6742706,898.13,897.15,1.671086]
[1768003756252,1.6742706,898.12,897.15,1.671086]
[1768003756450,1.6742706,898.11,897.15,1.671086]
[1768003756748,1.6742706,898.1,897.15,1.671086]
[1768003756953,1.6742706,898.09,897.15,1.671086]
[1768003757154,1.6742706,898.08,897.15,1.671086]
[1768003757351,1.6742706,898.07,897.15,1.671086]
[1768003757556,1.6742706,898.06,897.15,1.671086]
[1768003757754,1.6742706,898.05,897.15,1.671086]
[1768003758055,1.6742706,898.04,897.15,1.671086]
[1768003758350,1.6742706,898.03,897.15,1.671086]
[1768003758552,1.6742706,898.02,897.15,1.671086]
[1768003758753,1.6742706,898.01,897.15,1.671086]
[1768003759056,1.6742706,898.0,897.16,1.671086]
[1768003759352,1.6742706,897.99,897.15,1.671086]
[1768003759556,1.6742706,897.98,897.15,1.671086]
[1768003759757,1.6742706,897.97,897.15,1.671086]
[1768003759958,1.02633067,897.96,897.15,1.671086]
[1768003760253,1.02633067,897.95,897.15,1.671086]
[1768003760457,1.02633067,897.94,897.15,1.671086]
[1768003760656,1.02633067,897.93,897.15,1.671086]
[1768003760858,1.02633067,897.92,897.15,1.671086]
[1768003761058,1.02633067,897.91,897.15,1.671086]
[1768003761254,1.02633067,897.9,897.15,1.671086]
[1768003761459,1.02633067,897.89,897.15,1.671086]
[1768003761659,1.02633067,897.88,897.15,1.671086]
[1768003761854,1.02633067,897.87,897.15,1.671086]
[1768003762056,1.02633067,897.86,897.15,1.671086]
[1768003762254,1.02633067,897.85,897.15,1.671086]
[1768003762453,1.02633067,897.84,897.15,1.671086]
[1768003762659,1.02633067,897.83,897.15,1.671086]
[1768003762855,1.02633067,897.82,897.15,1.671086]
[1768003763059,1.02633067,897.81,897.15,1.671086]
[1768003763256,1.02633067,897.8,897.15,1.671086]
[1768003763456,1.02633067,897.79,897.15,1.671086]
[1768003763761,1.02633067,897.78,897.15,1.671086]
[1768003763962,1.02633067,897.77,897.15,1.671086]
[1768003764160,1.02633067,897.76,897.15,1.671086]
[1768003764357,1.02633067,897.75,897.15,1.671086]
[1768003764558,1.02633067,897.74,897.15,1.671086]
[1768003764758,0.19381356,898.46,897.18,1.671086]
[1768003764958,1.67155773,898.45,897.2,1.671086]
[1768003765158,1.67155773,898.44,897.2,1.671086]
[1768003765359,1.67155773,898.43,897.19,1.671086]
[1768003765561,1.67155773,898.42,897.19,1.671086]
[1768003765760,1.67155773,898.41,897.19,1.671086]
[1768003765964,1.67155773,898.4,897.19,1.671086]
[1768003766263,1.67155773,898.39,897.19,1.671086]
[1768003766461,1.67155773,898.38,897.19,1.671086]
[1768003766765,1.67155773,898.37,897.19,1.671086]
[1768003766960,1.67155773,898.36,897.19,1.671086]
[1768003767159,1.67155773,898.35,897.19,1.671086]
[1768003767363,1.67155773,898.34,897.19,1.671086]
[1768003767563,1.67155773,898.33,897.19,1.671086]
[1768003767764,1.67155773,898.32,897.19,1.671086]
[1768003767962,1.67155773,898.31,897.19,1.671086]
[1768003768161,1.67155773,898.3,897.19,1.671086]
[1768003768364,1.67155773,898.29,897.19,1.671086]
[1768003768562,1.67155773,898.28,897.19,1.671086]
[1768003768765,1.67155773,898.27,897.19,1.671086]
[1768003769061,1.67155773,898.26,897.25,1.671086]
[1768003769365,1.67155773,898.25,897.24,1.671086]
[1768003769562,1.67155773,898.24,897.24,1.671086]
[1768003769767,1.67155773,898.23,897.24,1.671086]
[1768003769968,1.67155773,898.22,897.24,1.671086]
[1768003770169,1.67155773,898.21,897.24,1.671086]
[1768003770463,1.67155773,898.2,897.23,1.671086]
[1768003770667,1.67155773,898.19,897.23,1.671086]
[1768003770868,1.67155773,898.18,897.23,1.671086]
[1768003771163,1.67155773,898.17,897.23,1.671086]
[1768003771369,1.67155773,898.16,897.23,1.671086]
[1768003771669,1.67155773,898.15,897.23,1.671086]
[1768003771966,1.67155773,898.14,897.23,1.671086]
[1768003772164,1.67155773,898.13,897.23,1.671086]
[1768003772368,1.67155773,898.12,897.23,1.671086]
[1768003772564,1.67155773,898.11,897.23,1.671086]
[1768003772769,1.02585518,898.1,897.23,1.671086]
[1768003772969,1.02585518,898.09,897.23,1.671086]
[1768003773166,1.02585518,898.08,897.23,1.671086]
[1768003773368,1.02585518,898.07,897.22,1.671086]
[1768003773567,1.02585518,898.06,897.22,1.671086]
[1768003773872,1.02585518,898.05,897.22,1.671086]
[1768003774072,1.02585518,898.04,897.22,1.671086]
[1768003774273,1.02585518,898.03,897.22,1.671086]
[1768003774471,1.02585518,898.02,897.22,1.671086]
[1768003774666,1.02585518,898.01,897.22,1.671086]
[1768003774970,1.02585518,898.0,897.22,1.671086]
[1768003775168,1.02585518,897.99,897.22,1.671086]
[1768003775470,1.02585518,897.98,897.22,1.671086]
[1768003775670,1.02585518,897.97,897.22,1.671086]
[1768003775868,1.02585518,897.96,897.22,1.671086]
[1768003776168,1.02585518,897.95,897.22,1.671086]
[1768003776370,1.02585518,897.94,897.22,1.671086]
[1768003776570,1.02585518,897.93,897.22,1.671086]
[1768003776770,1.02585518,897.92,897.22,1.671086]
[1768003776971,1.02585518,897.91,897.22,1.671086]
[1768003777168,1.02585518,897.9,897.22,1.671086]
[1768003777369,1.02585518,897.89,897.21,1.671086]
[1768003777570,1.02585518,897.88,897.21,1.671086]
[1768003777775,1.02585518,897.87,897.21,1.671086]
[1768003777970,1.02585518,897.86,897.21,1.671086]
[1768003778175,0.19371862,898.6,897.21,1.671086]
[1768003778474,1.66920375,898.59,897.21,1.671086]
[1768003778681,1.66920375,898.58,897.21,1.671086]
[1768003778971,1.66920375,898.57,897.21,1.671086]
[1768003779177,1.66920375,898.56,897.21,1.671086]
[1768003779376,1.66920375,898.55,897.21,1.671086]
[1768003779576,1.66920375,898.54,897.21,1.671086]
[1768003779772,1.66920375,898.53,897.21,1.671086]
[1768003779972,1.66920375,898.52,897.21,1.671086]
[1768003780172,1.66920375,898.51,897.21,1.671086]
[1768003780382,1.66920375,898.5,897.21,1.671086]
[1768003780573,1.66920375,898.49,897.21,1.671086]
[1768003780776,1.66920375,898.48,897.21,1.671086]
[1768003780979,1.66920375,898.47,897.21,1.671086]
[1768003781179,1.66920375,898.46,897.21,1.671086]
[1768003781377,1.66920375,898.45,897.21,1.671086]
[1768003781678,1.66920375,898.44,897.21,1.671086]
[1768003781876,1.66920375,898.43,897.21,1.671086]
[1768003782081,1.66920375,898.42,897.21,1.671086]
[1768003782281,1.66920375,898.41,897.21,1.671086]
[1768003782481,1.66920375,898.4,897.21,1.671086]
[1768003782680,1.66920375,898.39,897.21,1.671086]
[1768003782878,1.66920375,898.38,897.21,1.671086]
[1768003783081,1.66920375,898.37,897.21,1.671086]
[1768003783381,1.66920375,898.36,897.21,1.671086]
[1768003783680,1.66920375,898.35,897.21,1.671086]
[1768003783881,1.66920375,898.34,897.21,1.671086]
[1768003784083,1.66920375,898.33,897.21,1.671086]
[1768003784279,1.66920375,898.32,897.21,1.671086]
[1768003784581,1.66920375,898.31,897.21,1.671086]
[1768003784781,0.19371862,898.6,897.21,1.671086]
[1768003784782,1.66920375,898.3,897.21,1.671086]
[1768003784979,1.66920375,898.29,897.21,1.671086]
[1768003785280,1.66920375,898.28,897.21,1.671086]
[1768003785580,1.66920375,898.27,897.21,1.671086]
[1768003785780,1.66920375,898.26,897.21,1.671086]
[1768003785978,1.66920375,898.25,897.21,1.671086]
[1768003786183,1.66920375,898.24,897.21,1.671086]
[1768003786381,1.66920375,898.23,897.21,1.671086]
[1768003786580,1.66920375,898.22,897.21,1.671086]
[1768003786784,1.66920375,898.21,897.21,1.671086]
[1768003786979,1.66920375,898.2,897.21,1.671086]
[1768003787183,1.66920375,898.19,897.21,1.671086]
[1768003787382,1.66920375,898.18,897.21,1.671086]
[1768003787682,1.66920375,898.17,897.21,1.671086]
[1768003787881,1.66920375,898.16,897.21,1.671086]
[1768003788084,1.66920375,898.15,897.21,1.671086]
[1768003788284,1.66920375,898.14,897.21,1.671086]
[1768003788482,1.66920375,898.13,897.21,1.671086]
[1768003788781,1.66920375,898.12,897.21,1.671086]
[1768003788985,1.02425423,898.11,897.21,1.671086]
[1768003789184,1.02425423,898.1,897.2,1.671086]
[1768003789385,1.02425423,898.09,897.2,1.671086]
[1768003789582,1.02425423,898.08,897.2,1.671086]
[1768003789786,1.02425423,898.07,897.2,1.671086]
[1768003789990,1.02425423,898.06,897.2,1.671086]
[1768003790186,1.02425423,898.05,897.2,1.671086]
[1768003790386,1.02425423,898.04,897.21,1.671086]
[1768003790587,1.02425423,898.03,897.21,1.671086]
[1768003790883,1.02425423,898.02,897.21,1.671086]
[1768003791083,1.02425423,898.01,897.21,1.671086]
[1768003791281,1.02425423,898.0,897.21,1.671086]
[1768003791486,1.02425423,897.99,897.21,1.671086]
[1768003791684,0.19371862,898.6,897.21,1.671086]
[1768003791685,1.02425423,897.98,897.21,1.671086]
[1768003791983,1.02425423,897.97,897.21,1.671086]
[1768003792187,1.02425423,897.96,897.21,1.671086]
[1768003792387,1.02425423,897.95,897.21,1.671086]
[1768003792585,1.02425423,897.94,897.21,1.671086]
[1768003792788,1.02425423,897.93,897.21,1.671086]
[1768003792985,1.02425423,897.92,897.21,1.671086]
[1768003793182,1.02425423,897.91,897.21,1.671086]
[1768003793382,1.02425423,897.9,897.21,1.671086]
[1768003793583,1.02425423,897.89,897.21,1.671086]
[1768003793784,1.02425423,897.88,897.21,1.671086]
[1768003793984,1.02425423,897.87,897.21,1.671086]
[1768003794188,1.02425423,897.86,897.21,1.671086]
[1768003794384,1.02425423,897.85,897.21,1.671086]
[1768003794689,0.19371862,898.6,897.21,1.671086]
[1768003794989,1.6728965,898.59,897.21,1.671086]
[1768003795189,1.6728965,898.58,897.21,1.671086]
[1768003795385,1.6728965,898.57,897.21,1.671086]
[1768003795688,1.6728965,898.56,897.21,1.671086]
[1768003795890,1.6728965,898.55,897.21,1.671086]
[1768003796086,1.6728965,898.54,897.21,1.671086]
[1768003796389,1.6728965,898.53,897.21,1.671086]
[1768003796686,0.19371862,898.6,897.21,1.671086]
[1768003796687,1.6728965,898.52,897.21,1.671086]
[1768003796885,1.6728965,898.51,897.21,1.671086]
[1768003797090,1.6728965,898.5,897.21,1.671086]
[1768003797288,1.6728965,898.49,897.22,1.671086]
[1768003797486,1.6728965,898.48,897.22,1.671086]
[1768003797690,1.6728965,898.47,897.22,1.671086]
[1768003797991,1.6728965,898.46,897.22,1.671086]
[1768003798290,1.6728965,898.45,897.22,1.671086]
[1768003798488,1.6728965,898.44,897.22,1.671086]
[1768003798691,1.6728965,898.43,897.22,1.671086]
[1768003798887,1.6728965,898.42,897.22,1.671086]
[1768003799092,1.6728965,898.41,897.22,1.671086]
[1768003799392,1.6728965,898.4,897.22,1.671086]
[1768003799591,1.6728965,898.39,897.22,1.671086]
[1768003799888,1.6728965,898.38,897.22,1.671086]
[1768003800087,1.6728965,898.37,897.22,1.671086]
[1768003800388,1.6728965,898.36,897.22,1.671086]
[1768003800591,1.6728965,898.35,897.22,1.671086]
[1768003800789,1.6728965,898.34,897.22,1.671086]
[1768003800989,1.6728965,898.33,897.22,1.671086]
[1768003801188,1.6728965,898.32,897.22,1.671086]
[1768003801392,1.6728965,898.31,897.22,1.671086]
[1768003801593,1.6728965,898.3,897.22,1.671086]
[1768003801787,1.6728965,898.29,897.22,1.671086]
[1768003801992,1.6728965,898.28,897.22,1.671086]
[1768003802289,1.6728965,898.27,897.24,1.671086]
[1768003802488,1.6728965,898.26,897.24,1.671086]
[1768003802687,1.6728965,898.25,897.24,1.671086]
[1768003802990,1.6728965,898.24,897.24,1.671086]
[1768003803191,1.6728965,898.23,897.24,1.671086]
[1768003803389,1.6728965,898.22,897.24,1.671086]
[1768003803592,1.6728965,898.21,897.24,1.671086]
[1768003803789,1.6728965,898.2,897.24,1.671086]
[1768003803994,1.6728965,898.19,897.24,1.671086]
[1768003804191,1.6728965,898.18,897.24,1.671086]
[1768003804390,1.6728965,898.17,897.24,1.671086]
[1768003804594,1.6728965,898.16,897.24,1.671086]
[1768003804893,1.6728965,898.15,897.24,1.671086]
[1768003805090,1.6728965,898.14,897.24,1.671086]
[1768003805290,1.6728965,898.13,897.25,1.671086]
[1768003805592,1.6728965,898.12,897.25,1.671086]
[1768003805789,1.6728965,898.11,897.25,1.671086]
[1768003806095,1.6728965,898.1,897.25,1.671086]
[1768003806295,1.6728965,898.09,897.25,1.671086]
[1768003806496,1.02452064,898.08,897.25,1.671086]
[1768003806694,1.02452064,898.07,897.25,1.671086]
[1768003806894,1.02452064,898.06,897.25,1.671086]
[1768003807095,1.02452064,898.05,897.25,1.671086]
[1768003807291,1.02452064,898.04,897.25,1.671086]
[1768003807594,1.02452064,898.03,897.25,1.671086]
[1768003807792,1.02452064,898.02,897.25,1.671086]
[1768003807995,1.02452064,898.01,897.25,1.671086]
[1768003808296,1.02452064,898.0,897.26,1.671086]
[1768003808494,1.02452064,897.99,897.26,1.671086]
[1768003808689,1.02452064,897.98,897.26,1.671086]
[1768003808889,1.02452064,897.97,897.26,1.671086]
[1768003809093,1.02452064,897.96,897.26,1.671086]
[1768003809297,1.02452064,897.95,897.26,1.671086]
[1768003809492,1.02452064,897.94,897.26,1.671086]
[1768003809695,0.19371862,898.6,897.26,1.671086]
[1768003809696,1.02452064,897.93,897.26,1.671086]
[1768003809891,1.02452064,897.92,897.26,1.671086]
[1768003810094,1.02452064,897.91,897.26,1.671086]
[1768003810296,1.02452064,897.9,897.27,1.671086]
[1768003810594,1.02452064,897.89,897.27,1.671086]
[1768003810793,1.02452064,897.88,897.27,1.671086]
[1768003810999,1.02452064,897.87,897.27,1.671086]
[1768003811198,1.02452064,897.86,897.27,1.671086]
[1768003811398,1.02452064,897.85,897.27,1.671086]
[1768003811696,1.02452064,897.84,897.27,1.671086]
[1768003811897,1.02452064,897.83,897.27,1.671086]
[1768003812098,1.02452064,897.82,897.27,1.671086]
[1768003812298,1.02452064,897.81,897.27,1.671086]
[1768003812592,0.19371862,898.6,897.27,1.671086]
[1768003812798,1.67446797,898.59,897.27,1.671086]
[1768003812996,1.67446797,898.58,897.27,1.671086]
[1768003813298,1.67446797,898.57,897.28,1.671086]
[1768003813498,1.67446797,898.56,897.28,1.671086]
[1768003813697,1.67446797,898.55,897.28,1.671086]
[1768003813894,1.67446797,898.54,897.28,1.671086]
[1768003814194,1.67446797,898.53,897.28,1.671086]
[1768003814395,1.67446797,898.52,897.28,1.671086]
[1768003814597,1.67446797,898.51,897.28,1.671086]
[1768003814799,1.67446797,898.5,897.28,1.671086]
[1768003814994,1.67446797,898.49,897.28,1.671086]
[1768003815193,1.67446797,898.48,897.28,1.671086]
[1768003815398,1.67446797,898.47,897.28,1.671086]
[1768003815599,1.67446797,898.46,897.28,1.671086]
[1768003815898,1.67446797,898.45,897.28,1.671086]
[1768003816098,1.67446797,898.44,897.28,1.671086]
[1768003816396,1.67446797,898.43,897.28,1.671086]
[1768003816594,1.67446797,898.42,897.28,1.671086]
[1768003816794,1.67446797,898.41,897.28,1.671086]
[1768003816998,1.67446797,898.4,897.28,1.671086]
[1768003817196,1.67446797,898.39,897.28,1.671086]
[1768003817394,1.67446797,898.38,897.28,1.671086]
[1768003817597,1.67446797,898.37,897.28,1.671086]
[1768003817796,1.67446797,898.36,897.28,1.671086]
[1768003817995,1.67446797,898.35,897.28,1.671086]
[1768003818195,1.67446797,898.34,897.28,1.671086]
[1768003818395,1.67446797,898.33,897.28,1.671086]
[1768003818694,1.67446797,898.32,897.28,1.671086]
[1768003818896,1.67446797,898.31,897.28,1.671086]
[1768003819095,1.67446797,898.3,897.28,1.671086]
[1768003819296,1.67446797,898.29,897.27,1.671086]
[1768003819496,1.67446797,898.28,897.27,1.671086]
[1768003819695,1.67446797,898.27,897.27,1.671086]
[1768003819899,1.67446797,898.26,897.27,1.671086]
[1768003820099,1.67446797,898.25,897.27,1.671086]
[1768003820297,1.67446797,898.24,897.27,1.671086]
[1768003820496,1.67446797,898.23,897.27,1.671086]
[1768003820698,1.67446797,898.22,897.31,1.671086]
[1768003820901,1.67446797,898.21,897.34,1.671086]
[1768003821102,1.67446797,898.2,897.34,1.671086]
[1768003821302,1.67446797,898.19,897.33,1.671086]
[1768003821602,1.67446797,898.18,897.33,1.671086]
[1768003821798,1.67446797,898.17,897.33,1.671086]
[1768003822002,1.67446797,898.16,897.33,1.671086]
[1768003822199,1.67446797,898.15,897.33,1.671086]
[1768003822403,1.67446797,898.14,897.33,1.671086]
[1768003822698,1.67446797,898.13,897.33,1.671086]
[1768003822898,1.02533121,898.12,897.33,1.671086]
[1768003823104,1.02533121,898.11,897.33,1.671086]
[1768003823303,1.02533121,898.1,897.32,1.671086]
[1768003823500,1.02533121,898.09,897.32,1.671086]
[1768003823700,1.02533121,898.08,897.32,1.671086]
[1768003823900,0.19375691,898.7,897.32,1.671086]
[1768003823901,1.02533121,898.07,897.32,1.671086]
[1768003824202,1.02533121,898.06,897.32,1.671086]
[1768003824402,1.02533121,898.05,897.32,1.671086]
[1768003824600,1.02533121,898.04,897.32,1.671086]
[1768003824799,1.02533121,898.03,897.32,1.671086]
[1768003825001,1.02533121,898.02,897.32,1.671086]
[1768003825202,1.02533121,898.01,897.32,1.671086]
[1768003825403,1.02533121,898.0,897.32,1.671086]
[1768003825704,1.02533121,897.99,897.32,1.671086]
[1768003825901,1.02533121,897.98,897.32,1.671086]
[1768003826205,1.02533121,897.97,897.32,1.671086]
[1768003826403,1.02533121,897.96,897.32,1.671086]
[1768003826606,1.02533121,897.95,897.32,1.671086]
[1768003826906,1.02533121,897.94,897.32,1.671086]
[1768003827102,1.02533121,897.93,897.31,1.671086]
[1768003827302,1.02533121,897.92,897.31,1.671086]
[1768003827602,1.02533121,897.91,897.31,1.671086]
[1768003827806,1.02533121,897.9,897.31,1.671086]
[1768003828006,0.19375691,898.7,897.31,1.671086]
[1768003828206,1.67558359,898.69,897.31,1.671086]
[1768003828402,1.67558359,898.68,897.31,1.671086]
[1768003828603,1.67558359,898.67,897.31,1.671086]
[1768003828803,1.67558359,898.66,897.31,1.671086]
[1768003829006,1.67558359,898.65,897.31,1.671086]
[1768003829307,1.67558359,898.64,897.31,1.671086]
[1768003829504,1.67558359,898.63,897.31,1.671086]
[1768003829804,1.67558359,898.62,897.31,1.671086]
[1768003830006,1.67558359,898.61,897.31,1.671086]
[1768003830204,1.67558359,898.6,897.31,1.671086]
[1768003830408,1.67558359,898.59,897.31,1.671086]
[1768003830604,1.67558359,898.58,897.31,1.671086]
[1768003830905,0.19375691,898.7,897.31,1.671086]
[1768003830906,1.67558359,898.57,897.31,1.671086]
[1768003831109,1.67558359,898.56,897.31,1.671086]
[1768003831308,1.67558359,898.55,897.31,1.671086]
[1768003831505,1.67558359,898.54,897.31,1.671086]
[1768003831704,1.67558359,898.53,897.31,1.671086]
[1768003831910,1.67558359,898.52,897.31,1.671086]
[1768003832108,1.67558359,898.51,897.31,1.671086]
[1768003832310,1.67558359,898.5,897.31,1.671086]
[1768003832509,1.67558359,898.49,897.31,1.671086]
[1768003832706,1.67558359,898.48,897.31,1.671086]
[1768003832908,1.67558359,898.47,897.31,1.671086]
[1768003833110,1.67558359,898.46,897.31,1.671086]
[1768003833405,1.67558359,898.45,897.31,1.671086]
[1768003833608,1.67558359,898.44,897.31,1.671086]
[1768003833912,1.67558359,898.43,897.31,1.671086]
[1768003834109,1.67558359,898.42,897.31,1.671086]
[1768003834314,1.67558359,898.41,897.31,1.671086]
[1768003834512,1.67558359,898.4,897.31,1.671086]
[1768003834707,1.67558359,898.39,897.31,1.671086]
[1768003834912,1.67558359,898.38,897.3,1.671086]
[1768003835108,1.67558359,898.37,897.3,1.671086]
[1768003835312,1.67558359,898.36,897.3,1.671086]
[1768003835613,1.67558359,898.35,897.3,1.671086]
[1768003835913,1.67558359,898.34,897.3,1.671086]
[1768003836212,1.67558359,898.33,897.3,1.671086]
[1768003836413,1.67558359,898.32,897.3,1.671086]
[1768003836610,1.67558359,898.31,897.3,1.671086]
[1768003836912,1.67558359,898.3,897.3,1.671086]
[1768003837114,1.67558359,898.29,897.3,1.671086]
[1768003837413,1.67558359,898.28,897.3,1.671086]
[1768003837615,1.67558359,898.27,897.3,1.671086]
[1768003837813,1.67558359,898.26,897.3,1.671086]
[1768003838113,1.67558359,898.25,897.3,1.671086]
[1768003838312,1.67558359,898.24,897.3,1.671086]
[1768003838513,1.67558359,898.23,897.3,1.671086]
[1768003838713,1.67558359,898.22,897.3,1.671086]
[1768003838909,1.67558359,898.21,897.3,1.671086]
[1768003839112,1.67558359,898.2,897.3,1.671086]
[1768003839413,1.67558359,898.19,897.3,1.671086]
[1768003839611,1.67558359,898.18,897.3,1.671086]
[1768003839810,1.67558359,898.17,897.3,1.671086]
[1768003840114,1.67558359,898.16,897.3,1.671086]
[1768003840413,1.02444344,898.15,897.3,1.671086]
[1768003840611,1.02444344,898.14,897.3,1.671086]
[1768003840810,1.02444344,898.13,897.3,1.671086]
[1768003841014,1.02444344,898.12,897.3,1.671086]
[1768003841213,1.02444344,898.11,897.3,1.671086]
[1768003841414,1.02444344,898.1,897.3,1.671086]
[1768003841611,1.02444344,898.09,897.3,1.671086]
[1768003841811,1.02444344,898.08,897.27,1.671086]
[1768003842011,1.02444344,898.07,897.27,1.671086]
[1768003842216,1.02444344,898.06,897.27,1.671086]
[1768003842516,1.02444344,898.05,897.27,1.671086]
[1768003842715,1.02444344,898.04,897.27,1.671086]
[1768003842913,1.02444344,898.03,897.27,1.671086]
[1768003843213,1.02444344,898.02,897.27,1.671086]
[1768003843516,1.02444344,898.01,897.27,1.671086]
[1768003843713,1.02444344,898.0,897.26,1.671086]
[1768003843915,1.02444344,897.99,897.26,1.671086]
[1768003844118,1.02444344,897.98,897.26,1.671086]
[1768003844311,1.02444344,897.97,897.27,1.671086]
[1768003844514,1.02444344,897.96,897.27,1.671086]
[1768003844812,1.02444344,897.95,897.27,1.671086]
[1768003845015,1.02444344,897.94,897.27,1.671086]
[1768003845215,1.02444344,897.93,897.27,1.671086]
[1768003845413,1.02444344,897.92,897.27,1.671086]
[1768003845614,1.02444344,897.91,897.27,1.671086]
[1768003845813,1.02444344,897.9,897.27,1.671086]
[1768003846016,1.02444344,897.89,897.27,1.671086]
[1768003846212,1.02444344,897.88,897.27,1.671086]
[1768003846512,1.02444344,897.87,897.27,1.671086]
[1768003846814,1.02491259,897.86,897.26,1.671086]
[1768003847020,0.19375691,898.7,897.26,1.671086]
[1768003847220,1.6756622,898.69,897.26,1.671086]
[1768003847415,1.6756622,898.68,897.26,1.671086]
[1768003847722,1.6756622,898.67,897.26,1.671086]
[1768003847917,1.6756622,898.66,897.26,1.671086]
[1768003848120,1.6756622,898.65,897.26,1.671086]
[1768003848320,1.6756622,898.64,897.26,1.671086]
[1768003848516,1.6756622,898.63,897.26,1.671086]
[1768003848821,1.6756622,898.62,897.26,1.671086]
[1768003849016,1.6756622,898.61,897.26,1.671086]
[1768003849216,1.6756622,898.6,897.25,1.671086]
[1768003849519,1.6756622,898.59,897.25,1.671086]
[1768003849822,1.6756622,898.58,897.25,1.671086]
[1768003850016,1.6756622,898.57,897.25,1.671086]
[1768003850318,1.67571377,898.56,897.25,1.671086]
[1768003850521,1.67571377,898.55,897.25,1.671086]
[1768003850718,1.67571377,898.54,897.25,1.671086]
[1768003850916,1.67571377,898.53,897.25,1.671086]
[1768003851218,1.67571377,898.52,897.25,1.671086]
[1768003851422,1.67571377,898.51,897.25,1.671086]
[1768003851723,1.67571377,898.5,897.25,1.671086]
[1768003851922,1.67571377,898.49,897.25,1.671086]
[1768003852121,1.67571377,898.48,897.25,1.671086]
[1768003852320,1.67571377,898.47,897.26,1.671086]
[1768003852522,1.67571377,898.46,897.26,1.671086]
[1768003852720,1.67571377,898.45,897.26,1.671086]
[1768003853024,1.67571377,898.44,897.26,1.671086]
[1768003853224,1.67571377,898.43,897.24,1.671086]
[1768003853520,1.67571377,898.42,897.22,1.671086]
[1768003853723,1.67571377,898.41,897.22,1.671086]
[1768003853921,1.67571377,898.4,897.22,1.671086]
[1768003854124,1.67571377,898.39,897.22,1.671086]
[1768003854426,1.67571377,898.38,897.22,1.671086]
[1768003854622,1.67571377,898.37,897.22,1.671086]
[1768003854823,1.67571377,898.36,897.22,1.671086]
[1768003855125,1.67571377,898.35,897.22,1.671086]
[1768003855326,1.67571377,898.34,897.22,1.671086]
[1768003855523,1.67571377,898.33,897.22,1.671086]
[1768003855722,1.67571377,898.32,897.22,1.671086]
[1768003855926,1.67571377,898.31,897.22,1.671086]
[1768003856123,0.19375691,898.7,897.22,1.671086]